Cogmind - Beta 17 @@@ ROGUE MODE // 2026.08.08 @ 14:30:13 Player: 4R-ZE3 Result: Self-destructed Performance ------------- Evolutions (2) 1000 Regions Visited (5) 1000 Robots Destroyed (25) 125 Value Destroyed (289) 289 Prototype IDs (1) 20 Alien Tech Used (0) 0 Bonus (7) 7 TOTAL SCORE: 2441 Bonus ------- Follower Combat Kills 7 Cogmind --------- Core Integrity 550/550 Matter 300/300 Energy 280/280 System Corruption 0% Temperature Cool (0) Movement Rolling (125) Ox3 Location -8/Materials Parts ------- > --- POWER (1) -------- Heavy Ion Engine > --- PROPULSION (2) --- Wheel > --- UTILITY (6) ------ Improved Heat Sink Large Storage Unit > --- WEAPON (2) ------- Particle Gun Spread Laser > --- INVENTORY (15) --- Heavy Ion Engine Light Treads Light Treads Wheel Wheel High-capacity Matter Pod (200) Structural Scanner Propulsion Shielding Medium Laser Light Assault Rifle Light Assault Rifle Grenade Launcher Rocket Launcher Enhanced Flamer Mining Claw Peak State ------------ > --- POWER ------------ Heavy Ion Engine > --- PROPULSION ------- Wheel Wheel > --- UTILITY ---------- Improved Heat Sink Large Storage Unit > --- WEAPON ----------- Medium Laser Particle Gun > --- INVENTORY -------- Heavy Ion Engine Light Treads Light Treads Wheel Wheel High-capacity Matter Pod Structural Scanner Propulsion Shielding Medium Laser Light Assault Rifle Light Assault Rifle Grenade Launcher Rocket Launcher Enhanced Flamer Mining Claw [Rating: 14] Favorites ----------- Power Heavy Ion Engine Engine Heavy Ion Engine Propulsion Wheel Wheel Wheel Utility Improved Heat Sink Device Improved Heat Sink Storage Large Storage Unit Weapon Medium Laser Energy Gun Medium Laser Ballistic Gun Light Assault Rifle Launcher Rocket Launcher Build | -11 -10 -10 -10 -9 -8 ------- Run | Yrd Mat Min Exi Min Mat Slots Evolved 4 | . . . . . 4 Power . | . . . . . . Propulsion . | . . . . . . Utility 4 | . . . . . 4 Weapon . | . . . . . . Parts Attached 16 | 6 7 1 . 2 . Power 3 | 1 2 . . . . Engine 3 | 1 2 . . . . Core . | . . . . . . Reactor . | . . . . . . Propulsion 2 | 2 . . . . . Treads . | . . . . . . Leg . | . . . . . . Wheel 2 | 2 . . . . . Hover . | . . . . . . Flight . | . . . . . . Utility 5 | 1 4 . . . . Device 2 | . 2 . . . . Storage 3 | 1 2 . . . . Processor . | . . . . . . Hackware . | . . . . . . Protection . | . . . . . . Artifact . | . . . . . . Weapon 6 | 2 1 1 . 2 . Energy Gun 3 | 1 1 . . 1 . Energy Cannon . | . . . . . . Ballistic Gun 1 | 1 . . . . . Ballistic Cannon . | . . . . . . Launcher 2 | . . 1 . 1 . Special Weapon . | . . . . . . Impact Weapon . | . . . . . . Slashing Weapon . | . . . . . . Piercing Weapon . | . . . . . . Special Melee Weapon . | . . . . . . Unidentified Prototypes 1 | . 1 . . . . Parts Lost 1 | . . . . 1 . Power . | . . . . . . Propulsion 1 | . . . . 1 . Utility . | . . . . . . Weapon . | . . . . . . Highest Loss Streak 1 | . . . . 1 . To Critical Strikes . | . . . . . . Average Backups 12 | 1 8 13 14 15 15 Power 1 | . 1 1 1 1 1 Propulsion 3 | 1 2 4 4 4 4 Utility 2 | . . 2 2 3 3 Weapon 5 | . 4 6 7 7 7 Tool/Special . | . . . . . . Unused Backups 15 | . 3 . . . 12 Power 2 | . 1 . . . 1 Propulsion 5 | . 1 . . . 4 Utility 3 | . . . . . 3 Weapon 5 | . 1 . . . 4 Tool/Special . | . . . . . . Average Slot Usage (%) 95 | . 97 100 100 92 54 Engine 13 | . 14 14 14 14 9 Wheel 24 | . 28 28 28 20 9 Device 13 | . 11 14 14 14 9 Storage 13 | . 14 14 14 14 9 Energy Gun 23 | . 14 27 28 27 18 Ballistic Gun 4 | . 14 . . . . Peak Build Rating 14 | 6 13 13 14 14 14 Average Rating 12 | 4 9 13 13 13 14 On Entrance 10 | . 6 13 13 14 14 Avg Prop Armor Cover (%) . | . . . . . . Naked Turns . | . . . . . . Heaviest Build 35 | 11 34 34 34 35 35 Greatest Support 20 | 20 20 20 20 20 10 Greatest Overweight (x) 3 | . 1 1 1 3 3 Average Overweight (x) 1 | . . 1 1 1 3 Largest Inventory Capacity 15 | 8 15 15 15 15 15 Average Capacity 13 | 6 11 15 15 15 15 Most Carried 15 | 4 12 14 15 15 15 Average Carried 12 | 2 8 13 14 15 15 Final Capacity 15 | 8 15 15 15 15 15 Final Carried 15 | 4 12 14 15 15 15 Class Distribution -------------------- 100% | Mutant Dominant Class ---------------- Mutant | -10/Materials Mutant | -10/Mines Mutant | -10/Exiles Mutant | -9/Mines Mutant | -8/Materials Resources | -11 -10 -10 -10 -9 -8 ----------- Run | Yrd Mat Min Exi Min Mat Matter Collected 468 | 208 137 44 16 63 . Remotely . | . . . . . . Salvage Created 420 | . 241 60 . 119 . Parts 48 | . 18 12 . 18 . Haulers Intercepted 2 | . 2 . . . . Recyclers Shooed . | . . . . . . Parts Field Recycled . | . . . . . . Retrieved Matter . | . . . . . . Parts Self-Destructed . | . . . . . . Prevented . | . . . . . . Parts Restored . | . . . . . . Kills | -11 -10 -10 -10 -9 -8 ------- Run | Yrd Mat Min Exi Min Mat Combat Hostiles Destroyed 21 | . 5 6 . 10 . Guns 14 | . 5 3 . 6 . AOE 7 | . . 3 . 4 . Classes Destroyed 5 | . 5 . . . . Worker 1 | . 1 . . . . Hauler 2 | . 2 . . . . Operator 1 | . 1 . . . . Swarmer 19 | . 3 6 . 10 . Grunt 2 | . 2 . . . . Best Kill Streak 5 | . 5 3 . 4 . Combat Bots Only 4 | . 3 3 . 4 . Max Kills in Single Turn 4 | . 1 2 . 4 . Gunslinging 1 | . . 1 . . . Exploded 4 | . . 2 . 4 . Melee . | . . . . . . Uniques/NPCs Destroyed . | . . . . . . Combat | -11 -10 -10 -10 -9 -8 -------- Run | Yrd Mat Min Exi Min Mat Hostile Shots Fired 57 | . 17 9 . 31 . Missed 17 | . 3 3 . 11 . Hits 40 | . 14 6 . 20 . Projectile 40 | . 14 6 . 20 . Critical Strikes 1 | . . . . 1 . Damage Taken 372 | . 131 48 . 193 . Core 101 | . 56 16 . 29 . Absorbed by Shields . | . . . . . . Core Remaining (%) 79 | 100 . . . 59 . Volleys Fired 44 | . 25 6 . 13 . Largest 2 | . 2 2 . 2 . Hottest 115 | . 70 115 . 115 . Shots Fired 83 | . 50 9 . 24 . Gun 78 | . 50 6 . 22 . Cannon . | . . . . . . Launcher 5 | . . 3 . 2 . Special . | . . . . . . Kinetic 25 | . 25 . . . . Thermal 53 | . 25 6 . 22 . Explosive 5 | . . 3 . 2 . Electromagnetic . | . . . . . . Robot Hit Streak 9 | . 9 3 . 4 . Robot Miss Streak 4 | . 1 2 . 4 . Penetration Max . | . . . . . . Secondary Targets 4 | . 2 1 . 1 . Max Gunslinging Chain 1 | . 1 1 . 1 . Shots Hit Robots 54 | . 38 4 . 12 . Core Hits 30 | . 15 6 . 9 . Critical Kills . | . . . . . . Critical Parts Destroyed . | . . . . . . Critical Strikes 4 | . 4 . . . . Burn 4 | . 4 . . . . Melee Attacks . | . . . . . . Impact . | . . . . . . Slashing . | . . . . . . Piercing . | . . . . . . Sneak Attacks . | . . . . . . Combat Hostiles . | . . . . . . Follow-up Attacks . | . . . . . . Damage Inflicted 1043 | . 424 207 . 412 . Guns 652 | . 424 62 . 166 . Cannons . | . . . . . . Explosions 391 | . . 145 . 246 . Melee . | . . . . . . Ramming . | . . . . . . Kinetic 177 | . 177 . . . . Thermal 475 | . 247 62 . 166 . Explosive 391 | . . 145 . 246 . Electromagnetic . | . . . . . . Impact . | . . . . . . Slashing . | . . . . . . Piercing . | . . . . . . Highest Corruption . | . . . . . . Average Corruption . | . . . . . . Corruption Purged . | . . . . . . Corruption Blocked . | . . . . . . Overload Shots . | . . . . . . Overflow Damage 17 | . . . . 17 . Projectiles . | . . . . . . Explosions 17 | . . . . 17 . Melee . | . . . . . . Knockbacks . | . . . . . . Impact . | . . . . . . Kinetic . | . . . . . . Secondary . | . . . . . . Self-Inflicted Damage 19 | . . . . 19 . Shots 1 | . . . . 1 . Rammed . | . . . . . . Targets Rammed . | . . . . . . Kicked . | . . . . . . Crushed . | . . . . . . Highest Temperature 176 | . 176 45 . 120 . Average Temperature 44 | . 44 23 . 49 . Received Heat Transfer 42 | . 42 . . . . Siege Activations . | . . . . . . Martial Activations . | . . . . . . Shielding Activations . | . . . . . . Robots Disrupted . | . . . . . . Combat Hostiles . | . . . . . . Robots Corrupted . | . . . . . . Combat Hostiles . | . . . . . . Parts Fried . | . . . . . . Impact Corruptions . | . . . . . . Robots Melted . | . . . . . . Combat Hostiles . | . . . . . . Parts Melted 4 | . 2 . . 2 . Heat Transferred 1591 | . 1036 148 . 407 . Parts Sabotaged . | . . . . . . Parts Stolen . | . . . . . . Parts Stripped . | . . . . . . Power Chain Reactions . | . . . . . . Alert | -11 -10 -10 -10 -9 -8 ------- Run | Yrd Mat Min Exi Min Mat Maximum Alert Level . | . . . . . . Low Security (%) 100 | 100 100 100 . 100 100 Level 1 . | . . . . . . Level 2 . | . . . . . . Level 3 . | . . . . . . Level 4 . | . . . . . . Level 5 . | . . . . . . High Security . | . . . . . . Max Security . | . . . . . . Peak Influence 152 | . 82 131 . 152 . Initial . | . . . . . . Average 42 | . 18 75 . 50 . Influence Increases 647 | . 179 161 . 307 . Destroy 0b10 Robot/C 440 | . 100 120 . 220 . Destroy 0b10 Robot/NC 20 | . 20 . . . . Destroy Leader 74 | . 24 20 . 30 . Allied During Kill 19 | . . . . 19 . Successful Hack 35 | . 35 . . . . Disable Machine 15 | . . . . 15 . Destroy Structure 44 | . . 21 . 23 . Influence Decreases 647 | . 179 140 21 307 . Entered New Map 21 | . . . 21 . . Time Decay 596 | . 179 140 . 277 . Lost Part 10 | . . . . 10 . Lost Ally 20 | . . . . 20 . Squads Dispatched 1 | . 1 . . . . Investigation . | . . . . . . Extermination . | . . . . . . Reinforcement 1 | . 1 . . . . Assault . | . . . . . . Garrison . | . . . . . . Intercept . | . . . . . . Searches Triggered . | . . . . . . Construction Impeded . | . . . . . . Haulers Reinforced . | . . . . . . Active Scanning Responses . | . . . . . . Cargo Convoy Interrupts . | . . . . . . Stealth | -11 -10 -10 -10 -9 -8 --------- Run | Yrd Mat Min Exi Min Mat Distress Signals 1 | . 1 . . . . Communications Jammed . | . . . . . . Distress Signals . | . . . . . . Times Spotted 29 | . 12 6 . 11 . Peak Tracking Total 5 | . 5 5 . 4 . Tactical Retreats . | . . . . . . Traps | -11 -10 -10 -10 -9 -8 ------- Run | Yrd Mat Min Exi Min Mat Traps Triggered . | . . . . . . Indirectly . | . . . . . . Trap Hack Attempts . | . . . . . . Triggered . | . . . . . . Disarmed . | . . . . . . Reprogrammed . | . . . . . . Reused . | . . . . . . Traps Extracted . | . . . . . . Installed . | . . . . . . Triggered . | . . . . . . Machines | -11 -10 -10 -10 -9 -8 ---------- Run | Yrd Mat Min Exi Min Mat Machines Disabled 1 | . . . . 1 . Max in Single Turn 1 | . . . . 1 . Machines Repaired . | . . . . . . Machines Dismantled . | . . . . . . Machines Sabotaged . | . . . . . . Overloaded Fab Kills . | . . . . . . Hacking | -11 -10 -10 -10 -9 -8 --------- Run | Yrd Mat Min Exi Min Mat Machines Accessed 7 | . 6 . 1 . . Terminals 4 | . 4 . . . . Fabricators . | . . . . . . Repair Stations . | . . . . . . Recycling Units 2 | . 2 . . . . Scanalyzers . | . . . . . . Garrison Access . | . . . . . . Total Hacks 17 | . 14 . 3 . . Successful 8 | . 5 . 3 . . Failed 8 | . 8 . . . . Catastrophic 1 | . 1 . . . . Database Lockouts 1 | . 1 . . . . Manual 11 | . 11 . . . . Terminals 11 | . 11 . . . . Fabricators . | . . . . . . Repair Stations . | . . . . . . Recycling Units 3 | . 3 . . . . Scanalyzers . | . . . . . . Garrison Access . | . . . . . . Terminal Hacks 4 | . 1 . 3 . . Record 3 | . . . 3 . . Robot Analysis 1 | . 1 . . . . Fabricator Hacks . | . . . . . . Repair Station Hacks . | . . . . . . Recycling Unit Hacks 1 | . 1 . . . . Retrieve Components 1 | . 1 . . . . Scanalyzer . | . . . . . . Garrison Access Hacks . | . . . . . . Unauthorized Hacks 3 | . 3 . . . . Terminals 3 | . 3 . . . . Botnet 3 | . 3 . . . . Fabricators . | . . . . . . Repair Stations . | . . . . . . Recycling Units . | . . . . . . Scanalyzers . | . . . . . . Garrison Access . | . . . . . . Data Cores Recovered . | . . . . . . Used . | . . . . . . Hacking Detections 6 | . 6 . . . . Full Trace Events . | . . . . . . Feedback Events . | . . . . . . Feedback Blocked . | . . . . . . Robot Schematics Acquired . | . . . . . . Robots Built . | . . . . . . Authchips . | . . . . . . Time . | . . . . . . Total Robot Build Rating . | . . . . . . Part Schematics Acquired . | . . . . . . Parts Built . | . . . . . . Authchips . | . . . . . . Time . | . . . . . . Total Part Build Rating . | . . . . . . Part Studies Acquired . | . . . . . . Parts Repaired . | . . . . . . Time . | . . . . . . Parts Recycled . | . . . . . . Recycled Matter . | . . . . . . Retrieved Matter . | . . . . . . Retrieved Components . | . . . . . . Parts Scanalyzed . | . . . . . . Part Schematics Acquired . | . . . . . . Parts Damaged . | . . . . . . Bothacking | -11 -10 -10 -10 -9 -8 ------------ Run | Yrd Mat Min Exi Min Mat Used RIF Installer . | . . . . . . Robots Hacked . | . . . . . . Non-combat . | . . . . . . Combat . | . . . . . . Robot Hacks Applied . | . . . . . . Relay Couplers Released . | . . . . . . Fabnet Peak Effective % . | . . . . . . Robots Rewired . | . . . . . . Allies Hacked . | . . . . . . Hacks Repelled . | . . . . . . Allies | -11 -10 -10 -10 -9 -8 -------- Run | Yrd Mat Min Exi Min Mat Total Allies 3 | . . . . 3 . Largest Group 3 | . . . . 3 2 Highest-Rated Group 40 | . . . . 40 24 Highest-Rated Ally 16 | . . . . 16 16 Total Orders . | . . . . . . Ally Attacks 7 | . . . . 7 . Total Damage 40 | . . . . 40 . Kills 1 | . . . . 1 . Allies Corrupted . | . . . . . . Allies Melted . | . . . . . . Intel | -11 -10 -10 -10 -9 -8 ------- Run | Yrd Mat Min Exi Min Mat Active Infowar (turns) . | . . . . . . Robot Analysis Total 1 | . 1 . . . . Derelict Logs Recovered 2 | . . 1 . 1 . Drone Launches . | . . . . . . Drone Recoveries . | . . . . . . Exploration | -11 -10 -10 -10 -9 -8 ------------- Run | Yrd Mat Min Exi Min Mat Turns Passed 1953 | 40 590 289 281 745 8 Spaces Moved 1773 | 35 528 281 295 628 6 Core 1 | 1 . . . . . Treads . | . . . . . . Legs . | . . . . . . Wheels 1772 | 34 528 281 295 628 6 Hover . | . . . . . . Flight . | . . . . . . Fastest Speed 50 | 50 80 95 95 95 125 Average Speed 98 | 79 88 95 95 109 125 Slowest Speed 125 | 80 95 95 95 125 125 Overloaded Moves . | . . . . . . Propulsion Burnouts . | . . . . . . Robots Hopped . | . . . . . . Potential Cave-ins . | . . . . . . Cave-ins Triggered . | . . . . . . Exploration Rate (%) 50 | 3 79 64 55 99 3 Regions Visited 5 Branch Regions 3 Pre-discovered Areas 2 | . . . 1 1 . Known Exits Taken . | . . . . . . Unknown Exits Taken 5 | 1 1 1 1 1 . Scrap Searched 2 | . . . . 2 . Spaces Dug . | . . . . . . Terrain Destroyed 49 | . . 25 . 24 . Melee . | . . . . . . Projectile . | . . . . . . AOE 49 | . . 25 . 24 . Terrain Rammed . | . . . . . . Walls Destroyed . | . . . . . . Machines Disabled . | . . . . . . Actions | -11 -10 -10 -10 -9 -8 --------- Run | Yrd Mat Min Exi Min Mat Total 1902 | 44 607 292 295 658 6 Wait 44 | . 28 2 . 14 . Move 1768 | 34 527 280 294 627 6 Hop . | . . . . . . Pick Up 19 | 4 12 2 1 . . Fast Attach 8 | 6 2 . . . . Attach . | . . . . . . Detach . | . . . . . . Swap 10 | . 5 2 . 3 . Drop 9 | . 8 . . 1 . Fire 44 | . 25 6 . 13 . Melee . | . . . . . . Ram . | . . . . . . Kick . | . . . . . . Crush . | . . . . . . Escape Stasis . | . . . . . . Rewire . | . . . . . . Trap . | . . . . . . Miscellaneous . | . . . . . . Route ------- -11/Scrapyard -10/Materials (discovered 4 exits: [*Mat] / [*Min x2] / [*Sub]) -10/Mines (discovered 3 exits: [*Mat x2] / *Exi) -10/Exiles (discovered 2 exits: [*Min x2]) -9/Mines (discovered 2 exits: [*Mat x2]) -8/Materials History --------- Turn | Location | Event 29 | -11/Scrapyard | Discovered new exit (range 15) 41 | -11/Scrapyard | Entered Materials 179 | -10/Materials | Discovered new exit (range 9) 205 | -10/Materials | Discovered new exit (range 11) 323 | -10/Materials | Build established: Mutant 380 | -10/Materials | Discovered new exit (range 15) 502 | -10/Materials | Discovered new exit (range 8) 594 | -10/Materials | Central database locked down 631 | -10/Materials | Entered Mines 634 | -10/Mines | Discovered new exit (range 12) 661 | -10/Mines | A weapon hastily lodged in a ceiling crevice suddenly fell to the ground 735 | -10/Mines | Learned Materials emergency access door positions 782 | -10/Mines | Received a Rocket Launcher from a helpful Derelict 824 | -10/Mines | Found a Scrap Suit stashed away for nefarious purposes 889 | -10/Mines | Discovered new exit (range 5) 909 | -10/Mines | Assembled infested the area 914 | -10/Mines | Assisted by a Guerilla fighting off Assembled 916 | -10/Mines | Deemed a non-threat by the Exiles lab entrance 916 | -10/Mines | Discovered new exit (range 5) 920 | -10/Mines | Entered Exiles 944 | -10/Exiles | Met 8R-AWN 961 | -10/Exiles | Met EX-HEX 1000 | -10/Exiles | Met EX-DEC 1005 | -10/Exiles | Learned location of Zion (-7) 1091 | -10/Exiles | Discovered new exit (range 14) 1190 | -10/Exiles | Discovered new exit (range 14) 1201 | -10/Exiles | Entered Mines 1243 | -9/Mines | Met a Derelict bent on vengeance 1370 | -9/Mines | Found a hidden stash of uninstalled traps 1374 | -9/Mines | Discovered new exit (range 16) 1407 | -9/Mines | Assisted by bots powering up and referring to "LRC-V3" 1658 | -9/Mines | Discovered new exit (range 10) 1661 | -9/Mines | Learned location of Storage (-8) 1946 | -9/Mines | Entered Materials 1946 | -8/Materials | Accompanied by 2 allies 1946 | -8/Materials | Evolved 4 slots: Utility x4 1954 | -8/Materials | Self-destructed Last Messages --------------- lose some heat after our second raid on Storage failed. Whatever you do stay away from that place, they've tightened security following our previous successful raids." World map updated: -8/Storage. 01663_ W0-PQ1(g): "We scattered so the Unaware couldn't effectively use their advantage in numbers, and I suggest you do the same." 01663_ W0-PQ1(g) slips back into the shadows. 01696_ 8Z-V4I(g): "UNAWARE KILLED MY BEST FRIEND! VENGEANCE!" 01722_ Acquired derelict log, extracted data. Exit location confirmed. 01774_ Acquired 10 matter. 01943_ K-01 Serf collects debris. PARAMETERS=UTILITY+4 LOCATION=UNKNOWN GOAL=ESCAPE Loading Materials emergency access points (x5)... Map ----- +----------------------------------------------------+ | ?????????????????????????????????????????? | | ?????????????????????????????????????????? | | ?????????????????????????????????????????? | | ?????????????????????????????????????????? | | ?????????????????????????????????????????? | | ?????????????????????????????????????????? | | ?????????????????????????????????????????? | | ?????????????????????????????????????????? | | ?????????????????????????????????????????? | | ?????????????????????????????????????????? | | ?????????????????????????????????????????? | | ?????????????????????????????????????????? | | ?????????????????????????????????????????? | | ?????????????????????????????????????????? | | ?????????????????????????????????????????? | | ?????????????????????????????????????????? | | ?????????????????????????????????????????? | | ?????????????????????????????????????????? | | ??????????????????????########???????????? | | ??????????????????????+ ]#???????????? | | ?????????????????#????# #???????????? | | ?????????????????+ ???# !!! #???????????? | | ?????????????????# ??# !!! #???????????? | | ?????????????????# ?# !!! #???????????? | | ?????????######### #? ?????????????? | | ???????? ###@####???????????? | | ????????? #???????????? | | ????????? T g g #???????????? | | ????????????##### #???????????? | | ????????????????# ###+####???????????? | | ????????????????######?! ?????????????? | | ??????????????????????# #???????????? | | ??????????????????????# """ #???????????? | | ??????????????????????# """ #???????????? | | ??????????????????????# """ #???????????? | | ??????????????????????# #???????????? | | ??????????????????????########???????????? | | ?????????????????????????????????????????? | | ?????????????????????????????????????????? | | ?????????????????????????????????????????? | | ?????????????????????????????????????????? | | ?????????????????????????????????????????? | | ?????????????????????????????????????????? | | ?????????????????????????????????????????? | | ?????????????????????????????????????????? | | ?????????????????????????????????????????? | | ?????????????????????????????????????????? | | ?????????????????????????????????????????? | | ?????????????????????????????????????????? | | ?????????????????????????????????????????? | +----------------------------------------------------+ Best States ------------- Heat Dissipation 45 Energy Generation 14 Energy Capacity 280 Matter Stores 300 Matter Capacity 300 Sight Range 16 Terrain Scan Density 10 Evasion (%) 44 Item Schematics ----------------- None Robot Schematics ------------------ None Fabricated ------------ Nothing Repaired ---------- Nothing Studied --------- None Alien Tech Used ----------------- None Achievements -------------- None Challenges ------------ None Game ------ Seed AngularXenonFist Manual? 0 Play Time 00:11:48 Cumulative 200.0 hours Start 2026.08.08 @ 14:17:36 End 2026.08.08 @ 14:30:13 Sessions 1 Manual Loads 0 Difficulty Rogue Special Mode None Game No. 213 Rogue 159 Adventurer 54 Explorer 0 Win Type - Total 9 Types 5/0/1/1/0/0/0/1/0/1 Lore% 70 Gallery% 60 Achievement% 57 Wizard Run 0 Options --------- Layout 1 ASCII 0 Keyboard 0 Movement Mouse Keybinds 1 Fullscreen 2 Font 32/Tamsyn Map View 50x35 Zoom Use 0% Tactical HUD 1 Map Filters NONE Filters NONE Steam 1 RUN: 3569ee4e-a86d-4575-a0b9-04dd2caa7112